[Event "Budapest Chess Festival 2024"]
[Site "Budapest"]
[Date "2024.05.24"]
[Round "2.19"]
[White "Emanuel, Yahav"]
[Black "Costa, Leonardo"]
[Result "0-1"]
[ECO "C95"]
[WhiteElo "2317"]
[BlackElo "2486"]
[Annotator "TA"]
[PlyCount "86"]
[EventDate "2024.05.20"]
[EventType "swiss"]
[EventCountry "HUN"]
[SourceTitle "playchess.com"]
[Source "ChessBase"]
[SourceQuality "1"]
[TimeControl "40/5400+30:1800+30"]

{[%evp 21,86,20,25,28,19,18,20,0,9,-32,-29,-35,-27,-14,-17,-27,0,0,0,0,8,-12,-7,-35,-25,-36,-32,-25,-35,-100,-98,-108,-92,-102,-78,-119,-116,-143,-62,-54,-59,-56,-72,-47,-45,-132,-137,-162,-165,-300,-300,-435,-435,-484,-428,-566,-417,-597,-568,-961,-629,-10434,-6215,-29981,-29982,-29982,-29984]} 1. e4 {[%emt 0:00:36]} e5 {[%emt 0:00:34]} 2. Nf3 {[%emt 0:00:12]} Nc6 {[%emt 0:00:05]} 3. Bb5 {[%emt 0:00:08]} a6 {[%emt 0:00:04]} 4. Ba4 {[%emt 0:00:09]} Nf6 {[%emt 0:00:04]} 5. O-O {[%emt 0:00:10]} Be7 {[%emt 0:00:19]} 6. Re1 {[%emt 0:00:33]} b5 {[%emt 0:00:04]} 7. Bb3 {[%emt 0:00:06]} d6 {[%emt 0:00:05]} 8. c3 {[%emt 0:00:07]} O-O {[%emt 0:00:04]} 9. h3 {[%emt 0:00:25]} Nb8 {[%emt 0:00:45]} 10. d4 {[%emt 0:00:52]} Nbd7 {[%emt 0:00:04]} 11. Nbd2 {[%emt 0:00:16][%cal Bb1d2,Bd2f1,Bf1g3,Bg3f5][%mdl 32]} c5 {[%emt 0:00:06]} 12. Nf1 {[%emt 0:07:46]} Re8 {[%emt 0:02:04]} 13. Ng3 {[%emt 0:09:28]} Bf8 {[%emt 0:00:07]} 14. dxe5 {[%emt 0:12:41] The position is equal.} dxe5 {[%emt 0:09:18]} 15. Nf5 {[%emt 0:05:21]} c4 {[%emt 0:05:11]} 16. Bc2 {[%emt 0:00:04]} Qc7 {[%emt 0:07:52] Dodges Nd6} 17. Nh2 {[%emt 0:01:36]} Nc5 {[%emt 0:06:06]} 18. Qf3 {[%emt 0:03:03][%cal Of5h6]} Bxf5 {[%emt 0:07:28]} 19. Qxf5 {[%emt 0:01:41]} Qc8 {[%emt 0:03:08]} 20. Qf3 {[%emt 0:01:36]} Qe6 {[%emt 0:00:55]} 21. Ng4 {[%emt 0:12:48]} Nxg4 {[%emt 0:02:14]} 22. hxg4 {[%emt 0:05:01]} Rad8 {[%emt 0:08:46]} 23. Rb1 {[%emt 0:12:07]} a5 {[%emt 0:16:53]} 24. b3 {[%emt 0:07:20]} cxb3 {[%emt 0:02:12]} 25. Bxb3 {[%emt 0:06:12]} (25. axb3 $15 a4 26. b4 (26. bxa4 bxa4 27. g3 Rb8 $17)) 25... Nxb3 $17 {[%emt 0:00:15]} 26. axb3 {[%emt 0:00:01]} a4 {[%emt 0:01:51] Black is more active.} 27. c4 {[%emt 0:03:15]} Rb8 {[%emt 0:08:45]} 28. Bd2 {[%emt 0:05:07]} axb3 {[%emt 0:01:50]} (28... bxc4 29. bxa4 Qd7 30. Bc3 $15) 29. Qxb3 {[%emt 0:00:07]} bxc4 {[%emt 0:02:22]} ({Black should try} 29... Rbd8 $1 $17 {[%cal Rd8d2]} 30. Be3 bxc4 (30... Qxg4 31. cxb5 g6 32. b6 $18)) 30. Qxb8 $15 {[%emt 0:01:58]} Rxb8 {[%emt 0:00:04]} 31. Rxb8 {[%emt 0:00:06] [#] Hoping for Ra1.} Qd6 $1 {[%emt 0:00:02]} (31... Qxg4 $2 {is the wrong capture.} 32. Bb4 g5 33. Bxf8 $18) 32. Rb2 {[%emt 0:00:09]} Qd4 {[%emt 0:05:07]} 33. Rc2 {[%emt 0:00:02]} (33. Bc1 $15) 33... Qd3 $17 {[%emt 0:00:15]} 34. Rec1 {[%emt 0:01:12]} Ba3 $36 {[%emt 0:01:30][%mdl 2048] Black is really pushing.} ({Inferior is} 34... Qxe4 35. Rxc4 Qd5 36. Be3 $14) 35. Ra2 {[%emt 0:00:11]} (35. Rxc4 $142 Qxd2 36. Rc8+ Bf8 37. Rb1) 35... h5 $19 {[%emt 0:00:02]} 36. Rxa3 {[%emt 0:01:20]} (36. Rca1 $142 Bc5 (36... hxg4 37. Rxa3 Qxd2 38. R3a2 $17) 37. gxh5) 36... Qxa3 {[%emt 0:00:13]} 37. gxh5 {[%emt 0:00:33][%mdl 4096] Endgame. KQ-KRB} Qd3 {[%emt 0:01:10][%csl LRd2,LRe4]} 38. Be3 {[%emt 0:01:24]} Qxe4 {[%emt 0:00:15] aiming for ...Qd3.} 39. h6 {[%emt 0:02:14]} (39. Bd2 {was forced.}) 39... gxh6 {[%emt 0:02:47]} 40. Bxh6 {[%emt 0:00:00] [#]} c3 $1 {[%emt 0:00:00] Prevents Bd2.} 41. f3 {[%emt 0:10:59]} (41. Be3 c2) 41... Qd4+ {[%emt 0:01:46]} 42. Kf1 {[%emt 0:00:02]} Kh7 {[%emt 0:00:20]} 43. Bg5 {[%emt 0:00:13]} Kg6 {[%emt 0:00:26] Weighted Error Value: White=0.90/Black=0.13 (very precise) .  Mistake:       	White=5     	Black=1      Inaccurate:     	White=6     	Black=1      OK:         	White=6     	Black=11     Best:        	White=1     	Black=2      Strong:       	---       	Black=1} 0-1

[Event "Budapest Chess Festival 2024"]
[Site "Budapest"]
[Date "2024.05.24"]
[Round "2.20"]
[White "Sokolovsky, Yahli"]
[Black "Horvath, David"]
[Result "1-0"]
[ECO "C02"]
[WhiteElo "2484"]
[BlackElo "2313"]
[Annotator "TA"]
[PlyCount "53"]
[EventDate "2024.05.20"]
[EventType "swiss"]
[EventCountry "HUN"]
[SourceTitle "playchess.com"]
[Source "ChessBase"]
[SourceQuality "1"]
[TimeControl "40/5400+30:1800+30"]

{[%evp 15,53,15,12,4,3,3,39,8,16,17,33,0,36,19,35,27,100,97,102,109,118,119,111,106,158,106,118,99,142,165,229,224,381,170,178,104,93,107,323,314]} 1. e4 {[%emt 0:00:45]} e6 {[%emt 0:00:36]} 2. d4 {[%emt 0:00:05]} d5 {[%emt 0:00:06]} 3. e5 {[%emt 0:00:02]} c5 {[%emt 0:00:08]} 4. c3 {[%emt 0:00:06]} Nc6 {[%emt 0:00:08]} 5. Nf3 {[%emt 0:00:05]} Nge7 {[%emt 0:00:08]} 6. Na3 {[%emt 0:00:02]} cxd4 {[%emt 0:10:35]} 7. cxd4 {[%emt 0:00:31]} Nf5 {[%emt 0:00:12]} 8. Nc2 {[%emt 0:00:04]} Qb6 {[%emt 0:06:13]} 9. Bd3 {[%emt 0:00:07]} Bd7 {[%emt 0:00:13][%cal Rf5d4]} 10. O-O {[%emt 0:00:07][%cal Ob2b4]} Rc8 {[%emt 0:03:04]} 11. g4 {[%emt 0:05:40] White is slightly better.} Nfe7 {[%emt 0:09:19] [#]} (11... Nfxd4 $6 12. Nfxd4 Nxe5 (12... Nxd4 $2 13. Be3 $18) 13. Be2 $16) 12. b4 $1 {[%emt 0:00:07][%cal Bb2b4,Bb4b5][%mdl 32]} Ng6 {[%emt 0:15:04]} (12... h5 13. h3) 13. Rb1 {[%emt 0:00:44]} Be7 {[%emt 0:12:51]} 14. Bd2 {[%emt 0:01:51]} f6 {[%emt 0:08:20][%cal Bf7f6,Bf6e5][%mdl 32]} 15. b5 {[%emt 0:05:43]} Nxd4 {[%emt 0:08:30]} 16. Bxg6+ $16 {[%emt 0:26:15]} (16. Nfxd4 fxe5 17. Bxg6+ hxg6 $14) 16... hxg6 {[%emt 0:00:08]} 17. Ncxd4 {[%emt 0:00:13][%cal Bc2d4,Bd4e2,Be2g3][%mdl 32] [#] Black must now prevent Bb4.} (17. Nfxd4 fxe5 18. Ne2 (18. Nf3 e4 $17) 18... Bd6 $14) 17... fxe5 {[%emt 0:00:12]} 18. Ne2 {[%emt 0:27:04]} (18. Nxe5 $6 Qxd4 19. Nxg6 Rh3 20. Nxe7 Rc4 $11) 18... Bd6 {[%emt 0:17:45]} 19. Be3 {[%emt 0:07:26]} Qd8 {[%emt 0:03:00]} (19... Qa5 $142) 20. Bg5 {[%emt 0:01:14]} (20. Bxa7 $2 {too greedy.} e4 21. Ng3 exf3 22. Qxf3 Qh4 $19) ({White should play} 20. Ng5) 20... Qb6 {[%emt 0:00:06]} 21. Nh4 {[%emt 0:02:07]} Rc4 {[%emt 0:02:40]} 22. Ng3 {[%emt 0:00:56]} O-O {[%emt 0:01:21]} (22... Rh7 $142 23. Rb3 (23. Nxg6 Kf7 $16) 23... Qc5 24. Nxg6 Kf7) 23. Nxg6 $18 {[%emt 0:01:20]} Rf7 {[%emt 0:00:21]} (23... Rfc8 24. Ne7+ Bxe7 25. Bxe7 Rc2) 24. Qe2 {[%emt 0:03:15]} (24. Be3 $142 d4 25. Bd2) 24... Qc7 {[%emt 0:00:33]} 25. Bd2 {[%emt 0:04:25]} ({Don't play} 25. Rfc1 Bxb5 26. Qe3 Bd7) (25. a4 $18 {And now Rbc1 would win.} Rxa4 26. Rbc1) 25... Rf6 $16 {[%emt 0:00:41]} 26. Nh4 {[%emt 0:00:26] Strongly threatening g5.} Qc5 $2 {[%emt 0:00:45]} (26... Rf8 $16 {was necessary.} 27. Kg2 Ra4) 27. g5 {[%emt 0:00:53] Weighted Error Value: White=0.28 (precise) /Black=0.41.  Loses game:     	---       	Black=1      Mistake:       	White=3     	Black=4      Inaccurate:     	White=2     	Black=3      OK:         	White=11    	Black=5      Best:        	White=1     	Black=2} 1-0

[Event "Budapest Chess Festival 2024"]
[Site "Budapest"]
[Date "2024.05.25"]
[Round "3.1"]
[White "Sokolovsky, Yahli"]
[Black "Aryan Chopra"]
[Result "1/2-1/2"]
[ECO "B06"]
[WhiteElo "2484"]
[BlackElo "2641"]
[Annotator "TA"]
[PlyCount "111"]
[EventDate "2024.05.20"]
[EventType "swiss"]
[EventCountry "HUN"]
[SourceTitle "playchess.com"]
[Source "ChessBase"]
[SourceQuality "1"]
[TimeControl "40/5400+30:1800+30"]

{[%evp 54,111,737,341,344,306,296,275,209,0,0,0,0,0,11,0,0,4,10,10,0,23,32,31,52,0,0,0,0,0,0,-167,-168,-169,-157,-150,0,0,-43,-8,-18,-10,0,-96,0,0,0,0,0,0,8,8,8,8,8,0,0,0,0,0]} 1. e4 {[%emt 0:00:33]} g6 {[%emt 0:00:39]} 2. d4 {[%emt 0:00:15]} Bg7 {[%emt 0:00:04]} 3. Nf3 {[%emt 0:00:10]} d6 {[%emt 0:00:09]} 4. Be3 {[%emt 0:01:30]} Nf6 {[%emt 0:00:16]} 5. Nc3 {[%emt 0:00:06]} a6 {[%emt 0:00:24]} 6. Bd3 {[%emt 0:04:40] B08: Pirc Defence: Classical System.} O-O {[%emt 0:02:29]} 7. Qd2 {[%emt 0:00:09]} Nc6 {[%emt 0:03:35]} 8. d5 {[%emt 0:07:40]} Ne5 {[%emt 0:01:47]} 9. Nxe5 {[%emt 0:00:53]} dxe5 {[%emt 0:00:05]} 10. f3 {[%emt 0:10:18]} e6 {[%emt 0:08:59]} 11. Bc4 {[%emt 0:00:53]} b5 $146 {[%emt 0:31:12]} ({Predecessor:} 11... exd5 12. Nxd5 Nxd5 13. Bxd5 Be6 14. O-O-O Bxd5 15. Qxd5 Qxd5 16. Rxd5 Rfd8 17. Rhd1 Rxd5 18. Rxd5 {0-1 Shalimov,V (2478)-Matjushin,G (2416) Mariupol op 2003 (7)}) 12. Bb3 {[%emt 0:00:07]} exd5 {[%emt 0:00:05]} 13. Nxd5 {[%emt 0:03:17]} Re8 {[%emt 0:16:46]} 14. Qc3 {[%emt 0:11:19]} Bb7 {[%emt 0:10:46]} 15. Nxc7 {[%emt 0:06:54]} Rc8 {[%emt 0:00:18]} 16. Bxf7+ {[%emt 0:01:56]} Kh8 {[%emt 0:00:05]} 17. Bxe8 {[%emt 0:08:47]} Rxc7 {[%emt 0:06:37]} 18. Bb6 {[%emt 0:02:18]} Nxe8 {[%emt 0:00:05]} 19. Bxc7 {[%emt 0:00:19]} Nxc7 {[%emt 0:00:33]} 20. Rd1 {[%emt 0:02:16]} Qh4+ {[%emt 0:02:26]} 21. Kf1 {[%emt 0:04:04]} Qe7 {[%emt 0:01:05]} 22. Qd2 {[%emt 0:01:09]} Bf8 {[%emt 0:05:26]} 23. Qd7 {[%emt 0:03:26]} Qc5 {[%emt 0:00:39]} 24. Qf7 {[%emt 0:00:37]} Bc8 {[%emt 0:00:45]} 25. Rd8 {[%emt 0:05:42]} Ne6 {[%emt 0:00:32]} 26. Re8 {[%emt 0:00:01]} h5 {[%emt 0:05:38]} 27. c3 {[%emt 0:06:53]} h4 {[%emt 0:02:00]} 28. g3 {[%emt 0:09:49]} (28. Qxg6 Qe3 $14) (28. Ke2 $142 h3 29. g3 (29. Rxe6 Bxe6 30. Qxe6 Bh6 $18) (29. gxh3 b4 $18)) 28... Qe3 $18 {[%emt 0:00:32]} 29. Rxc8 {[%emt 0:03:43]} Qc1+ {[%emt 0:00:11]} 30. Ke2 {[%emt 0:00:34]} (30. Kf2 Qd2+ 31. Kf1 Qd1+ 32. Kf2 Qd2+ 33. Kf1 Qd1+ 34. Kf2 Qd2+ $11) 30... Qxh1 {[%emt 0:00:04]} 31. Qf6+ $2 {[%emt 0:02:41]} (31. Qxe6 Qg2+ 32. Ke1 Qg1+ 33. Ke2 Qg2+ 34. Ke1 Qg1+ 35. Ke2 Qg2+ $11) (31. gxh4 $2 Nf4+ $19) (31. Rxf8+ $18 Nxf8 32. Qxf8+ Kh7 33. Qe7+ (33. gxh4 Qg2+ 34. Kd1 Qf1+ 35. Kc2 Qe2+ 36. Kb3 Qc4+ 37. Kc2 Qe2+ 38. Kb3 Qc4+ 39. Kc2 Qe2+ $11) 33... Kg8 34. Qe6+ (34. Qxh4 Qg2+ 35. Ke3 Qg1+ 36. Ke2 Qg2+ 37. Ke3 Qg1+ 38. Ke2 Qg2+ $11) (34. Qxe5 Qxh2+ 35. Kd3 hxg3 $11) (34. gxh4 Qg2+ 35. Ke1 Qg1+ 36. Ke2 Qg2+ 37. Ke3 Qg1+ 38. Ke2 Qg2+ $11) 34... Kh7 35. Qe7+ (35. Qxe5 Qxh2+ 36. Kd3 hxg3 $11) (35. gxh4 Qg2+ 36. Ke3 Qg1+ 37. Kd2 Qf2+ 38. Kc1 Qxf3 $16) 35... Kg8 36. Qe6+ (36. Qxh4 Qg2+ 37. Ke3 Qg1+ 38. Kd3 Qd1+ 39. Ke3 Qe1+ 40. Kd3 Qd1+ 41. Ke3 Qe1+ 42. Kd3 Qd1+ $11) (36. Qxe5 Qxh2+ 37. Kd3 hxg3 $11) (36. gxh4 Qg2+ 37. Ke3 Qg1+ 38. Ke2 Qg2+ 39. Ke3 Qg1+ 40. Ke2 Qg2+ $11) 36... Kh7 37. Qe7+ (37. Qxe5 Qxh2+ 38. Kd3 hxg3 $11) (37. gxh4 Qg2+ 38. Ke3 Qg1+ 39. Kd2 Qxh2+ 40. Kd3 Qxb2 $16)) 31... Kh7 $11 {[%emt 0:00:29]} 32. Qxh4+ {[%emt 0:00:06]} (32. Qxe6 $5 Qg2+ $8 33. Ke1 Qg1+ 34. Ke2 Qg2+ 35. Ke1 Qg1+ 36. Ke2 Qg2+ $11) 32... Kg7 {[%emt 0:01:01]} 33. Qh3 {[%emt 0:00:00]} Ng5 {[%emt 0:00:38]} 34. Qd7+ {[%emt 0:03:31]} Nf7 {[%emt 0:00:04]} 35. Rc7 {[%emt 0:00:47]} Qg2+ {[%emt 0:00:14]} 36. Ke1 {[%emt 0:00:33]} Qxf3 {[%emt 0:00:15]} 37. Qd5 {[%emt 0:00:22]} Kg8 {[%emt 0:01:13]} 38. Kd2 {[%emt 0:00:27]} a5 {[%emt 0:00:17]} 39. Qxb5 {[%emt 0:00:33]} (39. a3 $1 $14) 39... Qxe4 $11 {[%emt 0:00:36]} 40. Qd3 {[%emt 0:00:00]} Qg2+ {[%emt 0:00:00]} 41. Qe2 {[%emt 0:03:56]} Bh6+ {[%emt 0:02:44]} 42. Kd1 $2 {[%emt 0:01:40]} (42. Ke1 $1 $11 Qh1+ 43. Qf1 Qe4+ (43... Qxh2 44. Qxf7+ Kh8 45. Qh7#) (43... Qxf1+ $2 44. Kxf1 Kg7 45. b4 $18) 44. Qe2) 42... Qg1+ {[%emt 0:06:48]} 43. Kc2 {[%emt 0:00:51]} a4 $1 {[%emt 0:00:04]} 44. Rc8+ {[%emt 0:17:34] [#]} Kg7 {[%emt 0:00:58]} (44... Kh7 $1 $17 {White must now prevent ...Qc1+.} 45. Rc7 Qc1+ 46. Kd3 Qb1+ 47. Kc4 Qxa2+ 48. Kb5 Qb3+ 49. Ka6 a3 50. bxa3 Qxa3+ 51. Kb7 Bg7) 45. Rc7 $1 $11 {[%emt 0:00:28]} Qc1+ {[%emt 0:18:20]} 46. Kd3 {[%emt 0:00:01]} Qb1+ {[%emt 0:00:06]} 47. Kc4 {[%emt 0:00:02]} Qxa2+ {[%emt 0:00:04]} 48. Kb5 {[%emt 0:02:14] [#]} (48. Kb4 $11) 48... Qe6 {[%emt 0:03:20]} (48... Qd5+ $1 $17 49. Kxa4 e4) 49. Qc4 $1 $11 {[%emt 0:01:11]} Qe8+ {[%emt 0:00:10]} (49... Qxc4+ 50. Kxc4 e4 51. Ra7) 50. Qc6 {[%emt 0:00:28]} Qxc6+ {[%emt 0:02:42]} 51. Rxc6 {[%emt 0:01:32]} Bc1 {[%emt 0:00:34]} 52. Kxa4 {[%emt 0:00:02]} Bxb2 {[%emt 0:00:02]} 53. Kb3 {[%emt 0:01:47]} Bc1 {[%emt 0:00:04]} 54. Re6 {[%emt 0:00:13]} Be3 {[%emt 0:00:27]} 55. Kc4 {[%emt 0:00:57]} Bg1 {[%emt 0:00:12]} 56. h4 {[%emt 0:02:50]} 1/2-1/2

[Event "Budapest Chess Festival 2024"]
[Site "Budapest"]
[Date "2024.05.25"]
[Round "3.2"]
[White "Haring, Filip"]
[Black "Berkes, Ferenc"]
[Result "1/2-1/2"]
[ECO "C88"]
[WhiteElo "2484"]
[BlackElo "2618"]
[Annotator "TA"]
[PlyCount "24"]
[EventDate "2024.05.20"]
[EventType "swiss"]
[EventCountry "HUN"]
[SourceTitle "playchess.com"]
[Source "ChessBase"]
[SourceQuality "1"]
[TimeControl "40/5400+30:1800+30"]

{[%evp 19,24,14,17,5,0,25,20]} 1. e4 {[%emt 0:00:34]} e5 {[%emt 0:00:39]} 2. Nf3 {[%emt 0:00:14]} Nc6 {[%emt 0:00:08]} 3. Bb5 {[%emt 0:00:27][%cal Bf1b5,Bb5a4,Ba4b3][%mdl 32]} a6 {[%emt 0:00:11]} 4. Ba4 {[%emt 0:00:07]} Nf6 {[%emt 0:00:10]} 5. O-O {[%emt 0:00:29]} Be7 {[%emt 0:00:16]} 6. Re1 {[%emt 0:00:39]} b5 {[%emt 0:00:23]} 7. Bb3 {[%emt 0:00:06]} d6 {[%emt 0:00:13]} 8. a4 {[%emt 0:01:25]} Bd7 {[%emt 0:09:46]} 9. c3 {[%emt 0:03:59]} O-O {[%emt 0:02:59]} 10. h3 {[%emt 0:04:27]} h6 {[%emt 0:03:36]} 11. d4 {[%emt 0:05:53]} Re8 {[%emt 0:00:07]} 12. Nbd2 {[%emt 0:01:45]} Bf8 {[%emt 0:00:35] Not much happened in this game.   Weighted Error Value: White=0.05 (flawless) /Black=0.00 (flawless) .  OK:         	---       	Black=2} 1/2-1/2

[Event "Budapest Chess Festival 2024"]
[Site "Budapest"]
[Date "2024.05.25"]
[Round "3.3"]
[White "Kozak, Adam"]
[Black "Wadsworth, Matthew J"]
[Result "1/2-1/2"]
[ECO "C17"]
[WhiteElo "2607"]
[BlackElo "2470"]
[Annotator "TA"]
[PlyCount "165"]
[EventDate "2024.05.20"]
[EventType "swiss"]
[EventCountry "HUN"]
[SourceTitle "playchess.com"]
[Source "ChessBase"]
[SourceQuality "1"]
[TimeControl "40/5400+30:1800+30"]

{[%evp 105,165,20,20,20,20,20,20,20,20,20,20,20,20,0,20,20,20,0,27,35,37,0,85,85,85,20,20,20,20,20,20,0,20,0,75,20,20,20,20,20,20,8,8,8,8,8,8,8,8,0,0,0,8,8,8,0,0,0,8,0,0,0]} 1. e4 {[%emt 0:00:34]} e6 {[%emt 0:01:04]} 2. d4 {[%emt 0:01:49]} d5 {[%emt 0:00:11]} 3. Nc3 {[%emt 0:00:04]} Bb4 {[%emt 0:00:36]} 4. e5 {[%emt 0:00:06]} c5 {[%emt 0:00:11]} 5. Bd2 {[%emt 0:01:08]} Ne7 {[%emt 0:00:42]} 6. a3 {[%emt 0:00:48]} Bxc3 {[%emt 0:02:07]} 7. Bxc3 {[%emt 0:00:07]} cxd4 {[%emt 0:02:11]} 8. Bxd4 {[%emt 0:04:46]} Nbc6 {[%emt 0:02:26]} 9. Nf3 {[%emt 0:00:54]} Nxd4 {[%emt 0:04:32]} 10. Qxd4 {[%emt 0:01:30]} O-O {[%emt 0:01:53]} 11. O-O-O {[%emt 0:09:51]} Nc6 {[%emt 0:05:18]} 12. Qe3 {[%emt 0:00:26]} f6 {[%emt 0:01:58]} 13. exf6 {[%emt 0:01:50]} Qxf6 {[%emt 0:00:15]} 14. Bb5 {[%emt 0:05:18]} Bd7 {[%emt 0:03:20]} 15. Rhe1 {[%emt 0:02:36]} Rae8 {[%emt 0:14:59]} 16. Rd2 {[%emt 0:05:43]} a6 {[%emt 0:02:47]} 17. Bxc6 {[%emt 0:01:01]} Bxc6 {[%emt 0:00:08]} 18. Ne5 {[%emt 0:03:08]} d4 {[%emt 0:02:04]} 19. Rxd4 {[%emt 0:36:14]} Qxf2 {[%emt 0:02:28]} 20. Nxc6 {[%emt 0:00:34]} bxc6 {[%emt 0:01:30]} 21. Qxf2 {[%emt 0:09:42]} Rxf2 {[%emt 0:00:15]} 22. Rd2 {[%emt 0:00:02]} Rxd2 {[%emt 0:04:23]} 23. Kxd2 {[%emt 0:00:02]} Kf7 {[%emt 0:00:23]} 24. Re5 {[%emt 0:01:19]} Ke7 {[%emt 0:08:40]} 25. Ra5 {[%emt 0:00:19]} Ra8 {[%emt 0:00:46]} 26. b4 {[%emt 0:00:58]} Kd6 {[%emt 0:02:22]} 27. Kd3 {[%emt 0:03:06]} Kc7 {[%emt 0:02:33]} 28. h4 {[%emt 0:00:17]} g6 {[%emt 0:05:06]} 29. Ke3 {[%emt 0:00:37]} Kb6 {[%emt 0:02:28]} 30. g4 {[%emt 0:02:28]} Rf8 {[%emt 0:02:38]} 31. h5 {[%emt 0:02:51]} Rf1 {[%emt 0:11:10]} 32. hxg6 {[%emt 0:00:56]} hxg6 {[%emt 0:00:06]} 33. c3 {[%emt 0:04:07]} Rc1 {[%emt 0:02:10]} 34. Kd2 {[%emt 0:00:41]} Ra1 {[%emt 0:01:35]} 35. Kc2 {[%emt 0:01:32]} Rg1 {[%emt 0:05:19]} 36. Rg5 {[%emt 0:00:07]} e5 {[%emt 0:03:34]} 37. a4 {[%emt 0:00:44]} e4 {[%emt 0:01:16]} 38. Kd2 {[%emt 0:00:33]} Rg3 {[%emt 0:01:10]} 39. Rxg6 {[%emt 0:00:40]} Rd3+ {[%emt 0:01:21]} 40. Kc2 {[%emt 0:00:00]} Rg3 {[%emt 0:00:00]} 41. c4 {[%emt 0:16:36]} Kc7 {[%emt 0:03:23]} 42. a5 {[%emt 0:02:55]} Rg2+ {[%emt 0:03:58]} 43. Kc3 {[%emt 0:00:11]} e3 {[%emt 0:00:14]} 44. c5 {[%emt 0:04:05]} Kd7 {[%emt 0:04:09]} 45. Kd3 {[%emt 0:01:57]} e2 {[%emt 0:04:56]} 46. Kd2 {[%emt 0:00:07]} Kc7 {[%emt 0:03:55]} 47. Rg7+ {[%emt 0:00:28]} Kb8 {[%emt 0:00:42]} 48. g5 {[%emt 0:02:58]} Kc8 {[%emt 0:04:51]} 49. Ra7 {[%emt 0:04:16]} Rxg5 {[%emt 0:00:39]} 50. Rxa6 {[%emt 0:00:07]} Kb7 {[%emt 0:00:33]} 51. Rb6+ {[%emt 0:00:04]} Kc7 {[%emt 0:00:08]} 52. Kxe2 {[%emt 0:00:10]} Rg2+ {[%emt 0:01:30]} 53. Ke3 {[%emt 0:00:16]} Ra2 {[%emt 0:00:26]} 54. a6 {[%emt 0:03:00]} Ra1 {[%emt 0:00:54]} 55. Kd2 {[%emt 0:00:18]} Ra3 {[%emt 0:00:55]} 56. Kc2 {[%emt 0:00:07]} Ra2+ {[%emt 0:00:09]} 57. Kb3 {[%emt 0:01:17]} Ra1 {[%emt 0:00:06]} 58. Kc3 {[%emt 0:00:24]} Ra2 {[%emt 0:00:59]} 59. Kb3 {[%emt 0:00:44]} Ra1 {[%emt 0:00:06]} 60. Kb2 {[%emt 0:00:27]} Ra4 $1 {[%emt 0:00:07]} 61. Kc2 {[%emt 0:00:33]} Ra2+ {[%emt 0:00:11]} 62. Kd3 {[%emt 0:00:10]} Ra1 {[%emt 0:00:27]} 63. Kc3 {[%emt 0:00:48]} (63. Ke3 $14 {is superior.}) 63... Ra2 $16 {[%emt 0:00:24]} 64. Kd4 {[%emt 0:00:30]} Rd2+ {[%emt 0:00:52] [#]} 65. Kc4 $1 {[%emt 0:00:19]} Ra2 $1 {[%emt 0:00:09]} 66. Rb7+ {[%emt 0:00:43]} Kc8 {[%emt 0:00:13]} 67. Ra7 {[%emt 0:00:25]} Kb8 $1 {[%emt 0:00:18]} 68. Rb7+ {[%emt 0:00:02]} Kc8 $1 {[%emt 0:00:10]} 69. Ra7 {[%emt 0:00:57]} (69. Kc3 $11) 69... Kb8 $1 $16 {[%emt 0:00:07] [#]} 70. Rd7 {[%emt 0:00:37]} ({White should play} 70. Kb3 $1 $16 {[%cal Rb3a2]} Kxa7 71. Kxa2 Kxa6 72. Kb3) 70... Rxa6 $11 {[%emt 0:00:33]} 71. Kd4 {[%emt 0:00:14]} Kc8 {[%emt 0:01:14]} 72. Rf7 {[%emt 0:00:43]} Ra4 {[%emt 0:01:11]} 73. Ke5 {[%emt 0:00:08]} Rxb4 {[%emt 0:01:19]} 74. Kd6 {[%emt 0:00:02]} Rh4 {[%emt 0:01:25]} 75. Rc7+ {[%emt 0:01:07]} Kb8 {[%emt 0:00:10]} 76. Re7 $1 {[%emt 0:00:06]} Kc8 {[%emt 0:01:26]} 77. Rc7+ {[%emt 0:00:37]} Kb8 {[%emt 0:00:07]} 78. Rf7 {[%emt 0:00:04]} Kc8 {[%emt 0:00:27]} 79. Re7 {[%emt 0:00:09]} Rh1 {[%emt 0:00:35]} 80. Re2 {[%emt 0:01:09]} Kb7 {[%emt 0:00:49]} 81. Re7+ {[%emt 0:01:09]} Kc8 {[%emt 0:00:07]} 82. Re8+ {[%emt 0:00:31]} Kb7 {[%emt 0:00:06]} 83. Re7+ {[%emt 0:00:17]} 1/2-1/2